fUSD/lending_fUSD_20260502
["ID","MTS","AMOUNT","RATE_DAILY","PERIOD"]
[421440803,1777655075000,-249.89699999,8.134e-05,2]
[421440806,1777655075000,-749.55981004,8.135e-05,2]
[421440804,1777655075000,-6.10300001,8.134e-05,2]
[421440805,1777655075000,-250.0,8.135e-05,2]
[421440808,1777655076000,-300.0,8.135e-05,2]
[421440809,1777655076000,-449.55981004,8.135e-05,2]
[421440807,1777655076000,-256.10300001,8.135e-05,2]
[421440810,1777655077000,-279.9401,8.135e-05,2]
[421440811,1777655197000,279.9401,8.034e-05,2]
[421440812,1777655199000,-300.0,8.134e-05,2]
[421440814,1777655199000,-4400.01,8.135e-05,2]
[421440813,1777655199000,-300.0,8.134e-05,2]
[421440815,1777655216000,-3270.49008996,8.135e-05,2]
[421440819,1777655216000,-570.30851283,8.136e-05,2]
[421440818,1777655216000,-986.01894591,8.136e-05,2]
[421440816,1777655216000,-300.0,8.135e-05,2]
[421440817,1777655216000,-150.0,8.135e-05,2]
[421440821,1777655275000,-300.0,8.135e-05,2]
[421440823,1777655383000,500.0,0.0002963,120]
[421440824,1777655383000,19209.8894,8.036e-05,2]
[421440825,1777655384000,-195.19990338,8.136e-05,2]
[421440826,1777655384000,-500.0,8.136e-05,2]
[421440828,1777655384000,-500.0,8.136e-05,2]
[421440827,1777655384000,-500.0,8.136e-05,2]
[421440830,1777655384000,-500.0,8.136e-05,2]
[421440829,1777655384000,-500.0,8.136e-05,2]
[421440834,1777655384000,-500.0,8.136e-05,2]
[421440835,1777655384000,-256.0,8.136e-05,2]
[421440833,1777655384000,-500.0,8.136e-05,2]
[421440832,1777655384000,-500.0,8.136e-05,2]
[421440836,1777655384000,-210.60904153,8.137e-05,2]
[421440831,1777655384000,-261.53067153,8.136e-05,2]
[421440839,1777655385000,-224.52,8.2e-05,2]
[421440837,1777655385000,-890.43763465,8.137e-05,2]
[421440838,1777655385000,-249.897,8.178e-05,2]
[421440840,1777655385000,-209.30045463,8.315e-05,2]
[421440844,1777655385000,970.45567133,8.136e-05,2]
[421440842,1777655385000,970.45567133,8.136e-05,2]
[421440843,1777655385000,970.45567133,8.136e-05,2]
[421440845,1777655385000,467.58916239,8.136e-05,2]
[421440841,1777655385000,970.45567133,8.136e-05,2]
[421440851,1777655387000,-970.45567133,8.136e-05,2]
[421440848,1777655387000,-970.45567133,8.136e-05,2]
[421440846,1777655387000,-502.86650894,8.136e-05,2]
[421440849,1777655387000,-970.45567133,8.136e-05,2]
[421440850,1777655387000,-970.45567133,8.136e-05,2]
[421440852,1777655387000,-970.45567133,8.136e-05,2]
[421440847,1777655387000,-970.45567133,8.136e-05,2]
[421440855,1777655387000,-970.45567133,8.136e-05,2]
[421440854,1777655387000,-970.45567133,8.136e-05,2]
[421440856,1777655387000,-970.45567133,8.136e-05,2]
[421440858,1777655387000,-970.45567133,8.136e-05,2]
[421440857,1777655387000,-970.45567133,8.136e-05,2]
[421440859,1777655387000,-970.45567133,8.136e-05,2]
[421440853,1777655387000,-970.45567133,8.136e-05,2]
[421440860,1777655387000,-518.58465054,8.136e-05,2]
[421440861,1777655388000,-296.50156561,8.136e-05,2]
[421440862,1777655391000,500.0,0.00028945,120]
[421440864,1777655391000,500.0,0.00030096,120]
[421440863,1777655391000,500.0,0.00029521,120]
[421440890,1777655431000,-219.12109633,8.136e-05,2]
[421440885,1777655431000,-508.00583626,8.136e-05,2]
[421440886,1777655431000,-659.93397025,8.136e-05,2]
[421440888,1777655431000,-206.76915468,8.136e-05,2]
[421440891,1777655431000,-751.334575,8.136e-05,2]
[421440895,1777655431000,-970.45567133,8.136e-05,2]
[421440889,1777655431000,-763.68651665,8.136e-05,2]
[421440892,1777655431000,-970.45567133,8.136e-05,2]
[421440894,1777655431000,-970.45567133,8.136e-05,2]
[421440893,1777655431000,-970.45567133,8.136e-05,2]
[421440881,1777655431000,-343.43417773,8.136e-05,2]
[421440897,1777655431000,-87.00856539,8.136e-05,2]
[421440887,1777655431000,-310.52170108,8.136e-05,2]
[421440884,1777655431000,-462.44983507,8.136e-05,2]
[421440878,1777655431000,-970.45567133,8.136e-05,2]
[421440882,1777655431000,-627.0214936,8.136e-05,2]
[421440877,1777655431000,-970.45567133,8.136e-05,2]
[421440880,1777655431000,-970.45567133,8.136e-05,2]
[421440879,1777655431000,-970.45567133,8.136e-05,2]
[421440876,1777655431000,-970.45567133,8.136e-05,2]
[421440875,1777655431000,-970.45567133,8.136e-05,2]
[421440874,1777655431000,-970.45567133,8.136e-05,2]
[421440873,1777655431000,-155.36945518,8.136e-05,2]
[421440872,1777655431000,-250.0,8.135e-05,2]
[421440869,1777655431000,-408.24423702,8.135e-05,2]
[421440871,1777655431000,-491.37576396,8.135e-05,2]
[421440870,1777655431000,-300.37999902,8.135e-05,2]
[421440868,1777655431000,-300.0,8.135e-05,2]
[421440896,1777655431000,-970.45567133,8.136e-05,2]
[421440883,1777655431000,-970.45567133,8.136e-05,2]
[421440910,1777655431000,-970.45567133,8.136e-05,2]
[421440899,1777655431000,-970.45567133,8.136e-05,2]
[421440936,1777655431000,-967.83281816,8.136e-05,2]
[421440912,1777655431000,-970.45567133,8.136e-05,2]
[421440941,1777655431000,-967.83281816,8.136e-05,2]
[421440940,1777655431000,-967.83281816,8.136e-05,2]
[421440938,1777655431000,-967.83281816,8.136e-05,2]
[421440934,1777655431000,-967.83281816,8.136e-05,2]
[421440933,1777655431000,-967.83281816,8.136e-05,2]
[421440932,1777655431000,-967.83281816,8.136e-05,2]
[421440939,1777655431000,-967.83281816,8.136e-05,2]
[421440935,1777655431000,-967.83281816,8.136e-05,2]
[421440937,1777655431000,-967.83281816,8.136e-05,2]
[421440930,1777655431000,-967.83281816,8.136e-05,2]
[421440931,1777655431000,-967.83281816,8.136e-05,2]
[421440929,1777655431000,-967.83281816,8.136e-05,2]
[421440925,1777655431000,-967.83281816,8.136e-05,2]
[421440924,1777655431000,-567.72066027,8.136e-05,2]
[421440928,1777655431000,-967.83281816,8.136e-05,2]
[421440927,1777655431000,-967.83281816,8.136e-05,2]
[421440900,1777655431000,-970.45567133,8.136e-05,2]
[421440901,1777655431000,-970.45567133,8.136e-05,2]
[421440898,1777655431000,-883.44710594,8.136e-05,2]
[421440902,1777655431000,-970.45567133,8.136e-05,2]
[421440908,1777655431000,-970.45567133,8.136e-05,2]
[421440926,1777655431000,-967.83281816,8.136e-05,2]
[421440906,1777655431000,-970.45567133,8.136e-05,2]
[421440904,1777655431000,-970.45567133,8.136e-05,2]
[421440916,1777655431000,-970.45567133,8.136e-05,2]
[421440918,1777655431000,-970.45567133,8.136e-05,2]
[421440920,1777655431000,-970.45567133,8.136e-05,2]
[421440921,1777655431000,-970.45567133,8.136e-05,2]
[421440922,1777655431000,-970.45567133,8.136e-05,2]
[421440923,1777655431000,-970.45567133,8.136e-05,2]
[421440914,1777655431000,-970.45567133,8.136e-05,2]
[421440965,1777655432000,-467.83281813,8.136e-05,2]
[421440972,1777655432000,-500.0,8.219e-05,2]
[421440963,1777655432000,-967.83281815,8.136e-05,2]
[421440967,1777655432000,-611.08821602,8.136e-05,2]
[421440969,1777655432000,-500.0,8.136e-05,2]
[421440971,1777655432000,-500.0,8.219e-05,2]
[421440976,1777655432000,-605.97954537,8.315e-05,2]
[421440975,1777655432000,-500.0,8.219e-05,2]
[421440982,1777655432000,-2000.0,8.691e-05,2]
[421440970,1777655432000,-500.0,8.219e-05,2]
[421440974,1777655432000,-591.24548801,8.219e-05,2]
[421440973,1777655432000,-500.0,8.219e-05,2]
[421440977,1777655432000,-5130.56,8.491e-05,2]
[421440979,1777655432000,-20904.92,8.563e-05,2]
[421440981,1777655432000,-500.0,8.634e-05,2]
[421440980,1777655432000,-1489.3598,8.605e-05,2]
[421440983,1777655432000,-150.0,8.785e-05,2]
[421440962,1777655432000,-967.83281815,8.136e-05,2]
[421440978,1777655432000,-815.28,8.552e-05,2]
[421440961,1777655432000,-967.83281815,8.136e-05,2]
[421440946,1777655432000,-967.83281816,8.136e-05,2]
[421440960,1777655432000,-500.0,8.136e-05,2]
[421440943,1777655432000,-967.83281816,8.136e-05,2]
[421440953,1777655432000,-967.83281816,8.136e-05,2]
[421440942,1777655432000,-967.83281816,8.136e-05,2]
[421440945,1777655432000,-967.83281816,8.136e-05,2]
[421440949,1777655432000,-967.83281816,8.136e-05,2]
[421440947,1777655432000,-967.83281816,8.136e-05,2]
[421440944,1777655432000,-967.83281816,8.136e-05,2]
[421440948,1777655432000,-967.83281816,8.136e-05,2]
[421440966,1777655432000,-500.0,8.136e-05,2]
[421440950,1777655432000,-967.83281816,8.136e-05,2]
[421440952,1777655432000,-967.83281816,8.136e-05,2]
[421440954,1777655432000,-967.83281816,8.136e-05,2]
[421440956,1777655432000,-967.83281816,8.136e-05,2]
[421440955,1777655432000,-967.83281816,8.136e-05,2]
[421440964,1777655432000,-967.83281815,8.136e-05,2]
[421440958,1777655432000,-500.0,8.136e-05,2]
[421440957,1777655432000,-193.97303453,8.136e-05,2]
[421440959,1777655432000,-498.20621043,8.136e-05,2]
[421440951,1777655432000,-967.83281816,8.136e-05,2]
[421440986,1777655432000,-4700.0,8.839e-05,2]
[421440968,1777655432000,-182.11916908,8.136e-05,2]
[421440985,1777655432000,-5000.0,8.839e-05,2]
[421441015,1777655432000,-1600.0,0.00010075,2]
[421441010,1777655432000,-151.0,0.0001,2]
[421441008,1777655432000,-587.0,9.843e-05,2]
[421441011,1777655432000,-151.0,0.0001,2]
[421441012,1777655432000,-151.0,0.0001,2]
[421441013,1777655432000,-237.19324307,0.0001,2]
[421441016,1777655432000,-166.66,0.00010131,2]
[421441017,1777655432000,-188.97,0.00010411,2]
[421441018,1777655432000,-166.66,0.00010445,2]
[421441024,1777655432000,-5399.94,0.00010475,2]
[421441023,1777655432000,-299.99,0.00010475,2]
[421441022,1777655432000,-9999.99,0.00010475,2]
[421441019,1777655432000,-502.19224822,0.00010473,2]
[421441020,1777655432000,-8710.73,0.00010475,2]
[421441025,1777655432000,-9511.3,0.00010475,2]
[421441026,1777655432000,-150.99,0.00010475,2]
[421441028,1777655432000,-1254.41808677,0.000105,2]
[421441027,1777655432000,-89399.02308059,0.000105,2]
[421440984,1777655432000,-815.28,8.79e-05,2]
[421441009,1777655432000,-1000.0,9.925e-05,2]
[421441007,1777655432000,-166.66,9.818e-05,2]
[421441021,1777655432000,-999.99,0.00010475,2]
[421441006,1777655432000,-2000.0,9.777e-05,2]
[421440991,1777655432000,-250.0,8.949e-05,2]
[421441014,1777655432000,-1117.0,0.00010068,2]
[421440989,1777655432000,-160.70417944,8.949e-05,2]
[421440988,1777655432000,-894.0,8.948e-05,2]
[421440987,1777655432000,-420.0,8.948e-05,2]
[421440990,1777655432000,-500.0,8.949e-05,2]
[421440993,1777655432000,-2500.0,8.95e-05,2]
[421440995,1777655432000,-2500.0,8.95e-05,2]
[421440994,1777655432000,-2500.0,8.95e-05,2]
[421440992,1777655432000,-300.0,8.95e-05,2]
[421440998,1777655432000,-815.28,9.027e-05,2]
[421441002,1777655432000,-166.66,9.504e-05,2]
[421441005,1777655432000,-1852.42,9.702e-05,2]
[421441000,1777655432000,-2000.0,9.111e-05,2]
[421440999,1777655432000,-500.0,9.072e-05,2]
[421440997,1777655432000,-2500.0,8.95e-05,2]
[421441001,1777655432000,-160.51,9.5e-05,2]
[421441003,1777655432000,-194.01,9.595e-05,2]
[421440996,1777655432000,-2500.0,8.95e-05,2]
[421441004,1777655432000,-200.0,9.674e-05,2]
[421441046,1777655437000,-1568.249,0.00010941,2]
[421441048,1777655437000,-500.0,0.00010959,2]
[421441055,1777655437000,-166.66,0.00011072,2]
[421441049,1777655437000,-150.0,0.00010959,2]
[421441050,1777655437000,-166.66,0.00010959,2]
[421441053,1777655437000,-150.0,0.00010981,2]
[421441051,1777655437000,-150.0,0.00010959,2]
[421441047,1777655437000,-1664.0,0.00010941,2]
[421441052,1777655437000,-179.67897901,0.00010959,2]
[421441044,1777655437000,-250.0,0.00010875,2]
[421441056,1777655437000,-269.01,0.00011131,2]
[421441054,1777655437000,-166.66,0.00011068,2]
[421441045,1777655437000,-603.03301611,0.000109,2]
[421441034,1777655437000,-150.0,0.000108,2]
[421441041,1777655437000,-150.0,0.000108,2]
[421441042,1777655437000,-312.0,0.00010828,2]
[421441039,1777655437000,-150.0,0.000108,2]
[421441038,1777655437000,-150.0,0.000108,2]
[421441037,1777655437000,-150.0,0.000108,2]
[421441035,1777655437000,-177.31547693,0.000108,2]
[421441036,1777655437000,-150.0,0.000108,2]
[421441033,1777655437000,-150.0,0.000108,2]
[421441032,1777655437000,-150.0,0.000108,2]
[421441031,1777655437000,-166.66,0.00010759,2]
[421441030,1777655437000,-5262.4272,0.000106,2]
[421441029,1777655437000,-15741.85713264,0.000105,2]
[421441058,1777655437000,-183.0,0.00011137,2]
[421441043,1777655437000,-2000.0,0.00010863,2]
[421441057,1777655437000,-250.0,0.00011137,2]
[421441040,1777655437000,-150.0,0.000108,2]
[421441063,1777655437000,-1267.0,0.00011137,2]
[421441059,1777655437000,-241.282,0.00011137,2]
[421441088,1777655437000,-181.08010149,0.00011714,2]
[421441087,1777655437000,-6023.4396861,0.000117,2]
[421441086,1777655437000,-18961.7672586,0.000117,2]
[421441085,1777655437000,-150.0,0.000116,2]
[421441084,1777655437000,-150.0,0.000116,2]
[421441083,1777655437000,-166.66,0.00011507,2]
[421441080,1777655437000,-168.7,0.0001135,2]
[421441081,1777655437000,-166.66,0.00011397,2]
[421441078,1777655437000,-1600.0,0.00011335,2]
[421441077,1777655437000,-318.32,0.00011332,2]
[421441079,1777655437000,-168.7,0.0001135,2]
[421441076,1777655437000,-4298.90858672,0.00011332,2]
[421441074,1777655437000,-188.97,0.00011327,2]
[421441082,1777655437000,-150.0,0.000114,2]
[421441072,1777655437000,-150.0,0.000112,2]
[421441075,1777655437000,-598.21141328,0.00011332,2]
[421441068,1777655437000,-151.0,0.00011166,2]
[421441065,1777655437000,-836.74519558,0.00011166,2]
[421441061,1777655437000,-1049.0,0.00011137,2]
[421441060,1777655437000,-3533.0,0.00011137,2]
[421441064,1777655437000,-578.20924308,0.00011166,2]
[421441069,1777655437000,-174.61919141,0.00011166,2]
[421441062,1777655437000,-1350.0,0.00011137,2]
[421441066,1777655437000,-4410.09133366,0.00011166,2]
[421441071,1777655437000,-150.0,0.000112,2]
[421441070,1777655437000,-166.66,0.00011178,2]
[421441073,1777655437000,-166.66,0.00011288,2]
[421441067,1777655437000,-3151.37091492,0.00011166,2]
[421441097,1777655438000,-1728.65978109,0.000119,2]
[421441100,1777655438000,-181.59316506,0.000119,2]
[421441099,1777655438000,-767.30873438,0.000119,2]
[421441096,1777655438000,-200.0,0.00011899,2]
[421441101,1777655438000,-2000.0,0.0001191,2]
[421441102,1777655438000,-33613.7668644,0.00011927,2]
[421441089,1777655438000,-1214.06821914,0.0001176,2]
[421441095,1777655438000,-2000.0,0.0001189,2]
[421441094,1777655438000,-5130.56,0.00011887,2]
[421441093,1777655438000,-1442.37745365,0.0001188,2]
[421441092,1777655438000,-557.62254635,0.0001188,2]
[421441091,1777655438000,-2000.0,0.0001188,2]
[421441090,1777655438000,-314.59951541,0.00011845,2]
[421441104,1777655438000,-380.52932165,0.00011927,2]
[421441103,1777655438000,-829.67010334,0.00011927,2]
[421441106,1777655438000,-1043.77859769,0.00011927,2]
[421441098,1777655438000,-1929.21833109,0.000119,2]
[421441108,1777655438000,-250.0,0.00011945,2]
[421441121,1777655438000,-666.0,0.00011999,2]
[421441122,1777655438000,-288531.62142635,0.00012,2]
[421441120,1777655438000,-300.0,0.00011999,2]
[421441117,1777655438000,-161.0,0.0001199,2]
[421441116,1777655438000,-583.12,0.00011988,2]
[421441119,1777655438000,-666.0,0.00011999,2]
[421441115,1777655438000,-182.78,0.00011988,2]
[421441118,1777655438000,-194.01,0.00011994,2]
[421441111,1777655438000,-492.14,0.00011951,2]
[421441113,1777655438000,-393.02,0.00011951,2]
[421441112,1777655438000,-393.02,0.00011951,2]
[421441110,1777655438000,-2000.0,0.0001195,2]
[421441114,1777655438000,-3929.0,0.00011973,2]
[421441109,1777655438000,-250.0,0.00011945,2]
[421441107,1777655438000,-312154.20559865,0.00011927,2]
[421441105,1777655438000,-389.96901647,0.00011927,2]
[421441212,1777655439000,-189639.89497707,0.00012,2]
[421441220,1777655439000,-1196198.13899968,0.00012,2]
[421441203,1777655439000,-12130.59827506,0.00011614,2]
[421441205,1777655439000,-367987.30237036,0.00012,2]
[421441298,1777655442000,-1676.623,0.00012,2]
[421441297,1777655442000,-2751.24470462,0.00012,2]
[421441296,1777655442000,-561.13229538,0.0001176,2]
[421441294,1777655442000,-562.936,0.0001131,2]
[421441295,1777655442000,-248.24651738,0.0001176,2]
[421441299,1777655443000,-713376.34234293,0.00012,2]
[421441305,1777655445000,-2993.13815483,0.00011646,2]
[421441308,1777655446000,-522.52533801,0.00011646,2]
[421441307,1777655446000,-4376.41460813,0.00011646,2]
[421441306,1777655446000,-348.97766009,0.00011646,2]
[421441327,1777655474000,10000.01,8.036e-05,2]
[421441328,1777655474000,10000.01,8.036e-05,2]
[421441330,1777655474000,5000.01,8.036e-05,2]
[421441331,1777655474000,1073041.9525,8.036e-05,2]
[421441329,1777655474000,10000.01,8.036e-05,2]
[421441333,1777655529000,195.40615434,8.136e-05,2]
[421441332,1777655529000,519.33451641,8.136e-05,2]
[421441334,1777655548000,350.0,8.036e-05,2]
[421441335,1777655613000,500.0,8.036e-05,2]
[421441337,1777655633000,9500.01,8.036e-05,2]
[421441338,1777655633000,3659.5989,8.036e-05,2]
[421441336,1777655633000,5000.01,8.036e-05,2]
[421441340,1777655809000,174.96,5.316e-05,2]
[421441342,1777655810000,174.96,7.973e-05,2]
[421441341,1777655810000,174.96,6.644e-05,2]
[421441345,1777656354000,-191.32315983,8.559e-05,2]
[421441347,1777656450000,-211.24302986,8.652e-05,2]
[421441346,1777656450000,-39.26684017,8.559e-05,2]
[421441348,1777656485000,173.0,8.036e-05,3]
[421441352,1777656631000,-1085.56,8.698e-05,2]
[421441353,1777656631000,-1414.44,8.698e-05,2]
[421441354,1777656631000,-1100.0,8.905e-05,2]
[421441355,1777656631000,-990.12700848,8.905e-05,2]
[421441356,1777656631000,-209.87299152,8.905e-05,2]
[421441358,1777656631000,-2500.0,8.906e-05,2]
[421441359,1777656631000,-2500.0,8.906e-05,2]
[421441360,1777656631000,-2500.0,8.906e-05,2]
[421441357,1777656631000,-300.0,8.905e-05,2]
[421441363,1777656631000,-174.96,9.302e-05,2]
[421441361,1777656631000,-549.86167582,9.022e-05,2]
[421441365,1777656631000,-355.31167771,9.415e-05,2]
[421441367,1777656631000,-2500.0,9.517e-05,2]
[421441377,1777656631000,-839.01437768,0.0001,2]
[421441373,1777656631000,-9216.71,9.764e-05,2]
[421441372,1777656631000,-300.0,9.517e-05,2]
[421441384,1777656631000,-2565.28,0.00010111,2]
[421441382,1777656631000,-549.8616758,0.00010052,2]
[421441379,1777656631000,-9430.3,0.00010044,2]
[421441381,1777656631000,-150.0,0.00010051,2]
[421441388,1777656631000,-194.01,0.00010188,2]
[421441378,1777656631000,-1404.09,0.00010027,2]
[421441375,1777656631000,-420.0,9.796e-05,2]
[421441376,1777656631000,-1600.0,9.801e-05,2]
[421441374,1777656631000,-1200.0,9.796e-05,2]
[421441369,1777656631000,-255.55202424,9.517e-05,2]
[421441386,1777656631000,-2000.0,0.00010118,2]
[421441444,1777656632000,-255.0,0.00011056,2]
[421441437,1777656632000,-1000.0,0.00011,2]
[421441440,1777656632000,-1000.0,0.00011,2]
[421441438,1777656632000,-1000.0,0.00011,2]
[421441436,1777656632000,-1000.0,0.00011,2]
[421441435,1777656632000,-1000.0,0.00011,2]
[421441439,1777656632000,-1000.0,0.00011,2]
[421441431,1777656632000,-1000.0,0.00011,2]
[421441453,1777656632000,-151.0,0.00011221,2]
[421441433,1777656632000,-1000.0,0.00011,2]
[421441454,1777656632000,-316.2,0.0001124,2]
[421441447,1777656632000,-578.20924308,0.00011166,2]
[421441446,1777656632000,-150.0,0.000111,2]
[421441443,1777656632000,-1404.09,0.0001103,2]
[421441449,1777656632000,-151.0,0.00011166,2]
[421441448,1777656632000,-9552.16786547,0.00011166,2]
[421441434,1777656632000,-1000.0,0.00011,2]
[421441452,1777656632000,-9905.5980765,0.00011221,2]
[421441450,1777656632000,-174.61919141,0.00011166,2]
[421441451,1777656632000,-549.8616758,0.00011181,2]
[421441464,1777656632000,-11046.30350255,0.00011386,2]
[421441465,1777656632000,-4723.905,0.00011397,2]
[421441445,1777656632000,-150.0,0.000111,2]
[421441432,1777656632000,-1000.0,0.00011,2]
[421441430,1777656632000,-1000.0,0.00011,2]
[421441428,1777656632000,-1000.0,0.00011,2]
[421441390,1777656632000,-1404.09,0.00010278,2]
[421441392,1777656632000,-188.97,0.00010411,2]
[421441396,1777656632000,-1404.09,0.00010529,2]
[421441400,1777656632000,-34661.68388683,0.00010682,2]
[421441394,1777656632000,-5547.07,0.00010486,2]
[421441402,1777656632000,-200.0,0.00010775,2]
[421441398,1777656632000,-174.96,0.00010631,2]
[421441406,1777656632000,-150.0,0.000108,2]
[421441404,1777656632000,-1404.09,0.00010779,2]
[421441408,1777656632000,-150.0,0.000108,2]
[421441442,1777656632000,-1600.0,0.00011026,2]
[421441410,1777656632000,-150.0,0.000108,2]
[421441414,1777656632000,-150.0,0.000108,2]
[421441422,1777656632000,-150.0,0.000108,2]
[421441416,1777656632000,-261.26925773,0.000108,2]
[421441423,1777656632000,-150.0,0.000108,2]
[421441420,1777656632000,-150.0,0.000108,2]
[421441418,1777656632000,-150.0,0.000108,2]
[421441459,1777656632000,-1267.0,0.0001131,2]
[421441426,1777656632000,-150.0,0.00010959,2]
[421441427,1777656632000,-1000.0,0.00011,2]
[421441429,1777656632000,-1000.0,0.00011,2]
[421441412,1777656632000,-150.0,0.000108,2]
[421441456,1777656632000,-367.85,0.00011281,2]
[421441441,1777656632000,-612.67,0.00011,2]
[421441457,1777656632000,-1193.86,0.00011281,2]
[421441485,1777656632000,-500.0,0.0001144,2]
[421441487,1777656632000,-500.0,0.0001144,2]
[421441486,1777656632000,-500.0,0.0001144,2]
[421441489,1777656632000,-500.0,0.0001144,2]
[421441492,1777656632000,-11878.85235123,0.00011496,2]
[421441497,1777656632000,-4011.86185792,0.00011551,2]
[421441496,1777656632000,-314.59951541,0.00011544,2]
[421441495,1777656632000,-1090.94875952,0.00011544,2]
[421441498,1777656632000,-2336.75293745,0.00011567,2]
[421441499,1777656632000,-18385.5495,0.00011578,2]
[421441494,1777656632000,-2500.0,0.00011541,2]
[421441505,1777656632000,-361.39717942,0.00011639,2]
[421441504,1777656632000,-397.40446219,0.00011639,2]
[421441500,1777656632000,-13171.75257226,0.000116,2]
[421441501,1777656632000,-13171.75257218,0.00011633,2]
[421441502,1777656632000,-500.0,0.00011639,2]
[421441493,1777656632000,-5000.0,0.00011541,2]
[421441503,1777656632000,-500.0,0.00011639,2]
[421441507,1777656632000,-14681.24404928,0.00011641,2]
[421441509,1777656632000,-250005.07126649,0.00011641,2]
[421441506,1777656632000,-250.0,0.0001164,2]
[421441458,1777656632000,-299.99,0.00011281,2]
[421441510,1777656632000,-63186.50130684,0.00011641,2]
[421441483,1777656632000,-500.0,0.0001144,2]
[421441484,1777656632000,-405.28617602,0.0001144,2]
[421441508,1777656632000,-166670.85333398,0.00011641,2]
[421441482,1777656632000,-500.0,0.0001144,2]
[421441463,1777656632000,-2000.0,0.00011382,2]
[421441461,1777656632000,-1664.0,0.0001131,2]
[421441460,1777656632000,-1220.0,0.0001131,2]
[421441462,1777656632000,-10652.17309792,0.00011331,2]
[421441466,1777656632000,-320.666,0.00011397,2]
[421441467,1777656632000,-150.0,0.000114,2]
[421441488,1777656632000,-500.0,0.0001144,2]
[421441475,1777656632000,-500.0,0.0001144,2]
[421441477,1777656632000,-500.0,0.0001144,2]
[421441469,1777656632000,-150.0,0.000114,2]
[421441468,1777656632000,-150.0,0.000114,2]
[421441476,1777656632000,-500.0,0.0001144,2]
[421441470,1777656632000,-500.0,0.0001144,2]
[421441478,1777656632000,-500.0,0.0001144,2]
[421441479,1777656632000,-500.0,0.0001144,2]
[421441481,1777656632000,-500.0,0.0001144,2]
[421441491,1777656632000,-11455.01673214,0.00011441,2]
[421441480,1777656632000,-500.0,0.0001144,2]
[421441490,1777656632000,-500.0,0.0001144,2]
[421441455,1777656632000,-10272.10520533,0.00011276,2]
[421441474,1777656632000,-500.0,0.0001144,2]
[421441472,1777656632000,-500.0,0.0001144,2]
[421441473,1777656632000,-500.0,0.0001144,2]
[421441471,1777656632000,-500.0,0.0001144,2]
[421441513,1777656633000,-2908.62641723,0.00011641,2]
[421441512,1777656633000,-145.55505471,0.00011641,2]
[421441511,1777656633000,-500.0,0.00011639,2]
[421441521,1777656637000,-500.0,0.00011639,2]
[421441522,1777656637000,-55.26,0.00011639,2]
[421441519,1777656637000,-500.0,0.00011639,2]
[421441520,1777656637000,-500.0,0.00011639,2]
[421441524,1777656638000,-500.0,0.00011639,2]
[421441534,1777656638000,-48993.48432967,0.00011641,2]
[421441523,1777656638000,-444.74,0.00011639,2]
[421441525,1777656638000,-215.09950033,0.00011639,2]
[421441528,1777656638000,-500.0,0.00011639,2]
[421441531,1777656638000,-500.0,0.00011639,2]
[421441526,1777656638000,-500.0,0.00011639,2]
[421441527,1777656638000,-250.9903884,0.00011639,2]
[421441529,1777656638000,-500.0,0.00011639,2]
[421441845,1777656640000,-27.83443,0.00011567,2]
[421441825,1777656640000,-383.15,0.00011567,2]
[421441822,1777656640000,-459.67,0.00011567,2]
[421441814,1777656640000,-693.27386168,0.00011567,2]
[421442143,1777656642000,-660738.71942419,0.00011641,2]
[421442141,1777656642000,-5074.29400126,0.00011567,2]
[421442139,1777656642000,-1049.0,0.0001131,2]
[421442145,1777656642000,-9813.32891706,0.00011641,2]
[421442164,1777656643000,-10919.104,0.00011641,2]
[421442159,1777656643000,-21.25812887,0.00011641,2]
[421442173,1777656645000,-704.43794619,0.00011641,2]
[421442176,1777656646000,-7104.51786869,0.00011641,2]
[421442175,1777656646000,-4083.24999999,0.00011641,2]
[421442174,1777656646000,-759.91,0.00011641,2]
[421442204,1777657023000,167.35,5.319e-05,2]